Cogmind - Beta 13 @@@ ROGUE MODE // 2024.03.03 @ 21:25:20 Player: StarSirius Result: Destroyed by HU-87V(R) with Subdweller Machine Gun Performance ------------- Evolutions (0) 0 Regions Visited (3) 600 Robots Destroyed (15) 75 Value Destroyed (303) 303 Prototype IDs (0) 0 Alien Tech Used (0) 0 Bonus (132) 132 TOTAL SCORE: 1110 Bonus ------- Follower Combat Kills 132 Cogmind --------- Core Integrity 0/250 Matter 300/300 Energy 121/125 System Corruption 0% Temperature Cool (2) Movement Walking (120) Location -10/Subcaves Parts ------- > --- POWER (1) -------- Light Ion Engine > --- PROPULSION (2) --- Aluminum Leg Aluminum Leg > --- UTILITY (2) ------ Small Storage Unit Subdweller Optics > --- WEAPON (2) ------- Light Assault Rifle Light Assault Rifle > --- INVENTORY (8) ---- Flight Unit Flight Unit Flight Unit Flight Unit Flight Unit Improved Heat Sink Small Laser Mining Laser Peak State ------------ > --- POWER ------------ Light Ion Engine > --- PROPULSION ------- Aluminum Leg Aluminum Leg > --- UTILITY ---------- Small Storage Unit Improved Terrain Scanner > --- WEAPON ----------- Medium Laser Assault Rifle > --- INVENTORY -------- Ion Engine Light Treads Light Treads Wheel Wheel Improved Heat Sink Light Assault Rifle Mining Laser [Rating: 10] Favorites ----------- Power Light Ion Engine Engine Light Ion Engine Propulsion Aluminum Leg Leg Aluminum Leg Flight Unit Flight Unit Utility Small Storage Unit Device Improved Terrain Scanner Storage Small Storage Unit Weapon Light Assault Rifle Energy Gun Medium Laser Ballistic Gun Light Assault Rifle Special Weapon Mining Laser Build | -11 -10 -10 -10 ------- Run | Yrd Mat Min Sub Slots Evolved . | . . . . Power . | . . . . Propulsion . | . . . . Utility . | . . . . Weapon . | . . . . Parts Attached 34 | 7 10 14 3 Power 3 | 1 1 1 . Engine 3 | 1 1 1 . Core . | . . . . Reactor . | . . . . Propulsion 7 | 2 1 4 . Treads . | . . . . Leg 6 | 2 1 3 . Wheel . | . . . . Hover . | . . . . Flight 1 | . . 1 . Utility 8 | 2 1 4 1 Device 7 | 1 1 4 1 Storage 1 | 1 . . . Processor . | . . . . Hackware . | . . . . Protection . | . . . . Artifact . | . . . . Weapon 16 | 2 7 5 2 Energy Gun 6 | 1 3 2 . Energy Cannon . | . . . . Ballistic Gun 8 | 1 3 2 2 Ballistic Cannon . | . . . . Launcher . | . . . . Special Weapon 2 | . 1 1 . Impact Weapon . | . . . . Slashing Weapon . | . . . . Piercing Weapon . | . . . . Special Melee Weapon . | . . . . Unidentified Prototypes . | . . . . Parts Lost 3 | . . 2 1 Power . | . . . . Propulsion 2 | . . 2 . Utility 1 | . . . 1 Weapon . | . . . . Highest Loss Streak 1 | . . 1 1 To Critical Strikes . | . . . . Average Slot Usage (%) 97 | . 99 95 99 Engine 14 | . 14 14 14 Leg 24 | . 28 22 28 Flight 1 | . . 1 . Device 13 | . 14 14 13 Storage 14 | . 14 14 14 Energy Gun 5 | . 13 4 . Ballistic Gun 21 | . 9 23 25 Special Weapon 1 | . 4 . 2 Naked Turns . | . . . . Heaviest Build 14 | 13 14 14 12 Greatest Support 20 | 20 20 20 20 Greatest Overweight (x) 1 | 1 . 1 . Average Overweight (x) . | . . . . Largest Inventory Capacity 8 | 8 8 8 8 Average Capacity 7 | 7 8 8 8 Most Carried 8 | 8 8 8 8 Average Carried 7 | 4 7 8 7 Final Capacity 8 | 8 8 8 8 Final Carried 8 | 7 8 8 8 Class Distribution -------------------- 58% | Scavenger-Mutant 41% | Mutant Dominant Class ---------------- Mutant | -10/Materials Scavenger-Mutant | -10/Mines Scavenger-Mutant | -10/Subcaves Resources | -11 -10 -10 -10 ----------- Run | Yrd Mat Min Sub Matter Collected 604 | 143 104 254 103 Remotely . | . . . . Salvage Created 287 | 13 145 129 . Parts 30 | 6 16 8 . Haulers Intercepted . | . . . . Recyclers Shooed . | . . . . Parts Field Recycled . | . . . . Retrieved Matter . | . . . . Parts Self-Destructed 6 | . . . 6 Prevented . | . . . . Kills | -11 -10 -10 -10 ------- Run | Yrd Mat Min Sub Combat Hostiles Destroyed 14 | . 9 5 . Guns 11 | . 6 5 . Cannons 3 | . 3 . . Classes Destroyed 3 | 1 2 . . Tunneler 1 | 1 . . . Swarmer 9 | . 6 3 . Grunt 5 | . 3 2 . Best Kill Streak 3 | 1 3 3 . Combat Bots Only 3 | . 3 3 . Max Kills in Single Turn 1 | 1 1 1 . Gunslinging . | . . . . Exploded . | . . . . Melee . | . . . . Uniques/NPCs Destroyed . | . . . . Combat | -11 -10 -10 -10 -------- Run | Yrd Mat Min Sub Hostile Shots Fired 110 | . 71 30 9 Missed 38 | . 25 10 3 Damage Taken 902 | . 523 251 128 Core 258 | . 151 62 45 Absorbed by Shields . | . . . . Core Remaining (%) 100 | 100 . . . Volleys Fired 57 | 3 34 20 . Largest 2 | 2 2 2 . Hottest 150 | 70 150 100 . Shots Fired 106 | 6 61 39 . Gun 91 | 6 47 38 . Cannon . | . . . . Launcher . | . . . . Special 15 | . 14 1 . Kinetic 39 | 3 17 19 . Thermal 67 | 3 44 20 . Explosive . | . . . . Electromagnetic . | . . . . Robot Hit Streak 9 | 4 9 5 . Robot Miss Streak 5 | 1 5 3 . Penetration Max . | . . . . Secondary Targets . | . . . . Shots Hit Robots 62 | 4 32 26 . Core Hits 24 | 1 14 9 . Critical Kills . | . . . . Critical Parts Destroyed . | . . . . Critical Strikes 2 | . 2 . . Burn 2 | . 2 . . Melee Attacks . | . . . . Impact . | . . . . Slashing . | . . . . Piercing . | . . . . Sneak Attacks . | . . . . Combat Hostiles . | . . . . Follow-up Attacks . | . . . . Damage Inflicted 835 | 54 526 255 . Guns 643 | 54 334 255 . Cannons . | . . . . Explosions . | . . . . Melee . | . . . . Ramming . | . . . . Kinetic 223 | 28 77 118 . Thermal 612 | 26 449 137 . Explosive . | . . . . Electromagnetic . | . . . . Impact . | . . . . Slashing . | . . . . Piercing . | . . . . Highest Corruption . | . . . . Average Corruption . | . . . . Corruption Purged . | . . . . Corruption Blocked . | . . . . Overload Shots . | . . . . Overflow Damage . | . . . . Projectiles . | . . . . Explosions . | . . . . Melee . | . . . . Knockbacks . | . . . . Impact . | . . . . Kinetic . | . . . . Secondary . | . . . . Self-Inflicted Damage . | . . . . Shots . | . . . . Rammed . | . . . . Targets Rammed . | . . . . Kicked . | . . . . Crushed . | . . . . Highest Temperature 132 | 27 132 20 . Average Temperature 25 | 14 41 4 . Received Heat Transfer 324 | . 204 111 9 Siege Activations . | . . . . Robots Corrupted . | . . . . Combat Hostiles . | . . . . Parts Fried . | . . . . Impact Corruptions . | . . . . Robots Melted . | . . . . Combat Hostiles . | . . . . Parts Melted 1 | . 1 . . Heat Transferred 1734 | 74 1253 407 . Parts Sabotaged . | . . . . Parts Stolen . | . . . . Parts Stripped . | . . . . Power Chain Reactions . | . . . . Alert | -11 -10 -10 -10 ------- Run | Yrd Mat Min Sub Peak Influence 271 | 5 271 220 . Initial 105 | . 3 105 . Average 112 | 1 116 117 . Maximum Alert Level 1 | . 1 1 . Low Security (%) 76 | 100 74 75 . Level 1 23 | . 25 24 . Level 2 . | . . . . Level 3 . | . . . . Level 4 . | . . . . Level 5 . | . . . . High Security . | . . . . Max Security . | . . . . Squads Dispatched 1 | . 1 . . Investigation . | . . . . Extermination . | . . . . Reinforcement 1 | . 1 . . Assault . | . . . . Garrison . | . . . . Intercept . | . . . . Searches Triggered . | . . . . Construction Impeded . | . . . . Haulers Reinforced . | . . . . Active Scanning Responses . | . . . . Cargo Convoy Interrupts . | . . . . Stealth | -11 -10 -10 -10 --------- Run | Yrd Mat Min Sub Distress Signals . | . . . . Communications Jammed . | . . . . Distress Signals . | . . . . Times Spotted 33 | . 16 11 6 Peak Tracking Total 4 | . 4 3 3 Tactical Retreats 1 | . . 1 . Traps | -11 -10 -10 -10 ------- Run | Yrd Mat Min Sub Traps Triggered 1 | . 1 . . Indirectly . | . . . . Trap Hack Attempts . | . . . . Triggered . | . . . . Disarmed . | . . . . Reprogrammed . | . . . . Reused . | . . . . Traps Extracted . | . . . . Installed . | . . . . Triggered . | . . . . Machines | -11 -10 -10 -10 ---------- Run | Yrd Mat Min Sub Machines Disabled 1 | . . 1 . Max in Single Turn . | . . . . Machines Repaired . | . . . . Machines Dismantled . | . . . . Machines Sabotaged . | . . . . Overloaded Fab Kills . | . . . . Hacking | -11 -10 -10 -10 --------- Run | Yrd Mat Min Sub Machines Accessed 2 | . 2 . . Terminals 1 | . 1 . . Fabricators . | . . . . Repair Stations 1 | . 1 . . Recycling Units . | . . . . Scanalyzers . | . . . . Garrison Access . | . . . . Total Hacks 7 | . 7 . . Successful 3 | . 3 . . Failed 4 | . 4 . . Catastrophic 1 | . 1 . . Database Lockouts . | . . . . Manual . | . . . . Terminals 5 | . 5 . . Fabricators . | . . . . Repair Stations 2 | . 2 . . Recycling Units . | . . . . Scanalyzers . | . . . . Garrison Access . | . . . . Terminal Hacks 2 | . 2 . . Branch Access Points 1 | . 1 . . Terminal Index 1 | . 1 . . Fabricator Hacks . | . . . . Repair Station Hacks 1 | . 1 . . Scan Component 1 | . 1 . . Recycling Unit Hacks . | . . . . Scanalyzer . | . . . . Garrison Access Hacks . | . . . . Unauthorized Hacks . | . . . . Terminals . | . . . . Fabricators . | . . . . Repair Stations . | . . . . Recycling Units . | . . . . Scanalyzers . | . . . . Garrison Access . | . . . . Data Cores Recovered . | . . . . Used . | . . . . Hacking Detections 2 | . 2 . . Full Trace Events . | . . . . Feedback Events . | . . . . Feedback Blocked . | . . . . Robot Schematics Acquired . | . . . . Robots Built . | . . . . Authchips . | . . . . Time . | . . . . Total Robot Build Rating . | . . . . Part Schematics Acquired . | . . . . Parts Built . | . . . . Authchips . | . . . . Time . | . . . . Total Part Build Rating . | . . . . Parts Repaired . | . . . . Time . | . . . . Parts Recycled . | . . . . Recycled Matter . | . . . . Retrieved Matter . | . . . . Retrieved Components . | . . . . Parts Scanalyzed . | . . . . Part Schematics Acquired . | . . . . Parts Damaged . | . . . . Bothacking | -11 -10 -10 -10 ------------ Run | Yrd Mat Min Sub Used RIF Installer . | . . . . Robots Hacked . | . . . . Non-combat . | . . . . Combat . | . . . . Robot Hacks Applied . | . . . . Relay Couplers Released . | . . . . Fabnet Peak Effective % . | . . . . Robots Rewired . | . . . . Allies Hacked . | . . . . Hacks Repelled . | . . . . Allies | -11 -10 -10 -10 -------- Run | Yrd Mat Min Sub Total Allies 3 | . . 3 . Largest Group 3 | . . 3 3 Highest-Rated Group 40 | . . 40 40 Highest-Rated Ally 16 | . . 16 16 Total Orders . | . . . . Ally Attacks 42 | . . 21 21 Total Damage 439 | . . 189 250 Kills 9 | . . 5 4 Allies Corrupted . | . . . . Allies Melted . | . . . . Intel | -11 -10 -10 -10 ------- Run | Yrd Mat Min Sub Robot Analysis Total . | . . . . Derelict Logs Recovered . | . . . . Drone Launches . | . . . . Drone Recoveries . | . . . . Exploration | -11 -10 -10 -10 ------------- Run | Yrd Mat Min Sub Turns Passed 2034 | 68 363 1251 352 Spaces Moved 891 | 40 168 408 275 Core 11 | 11 . . . Treads . | . . . . Legs 880 | 29 168 408 275 Wheels . | . . . . Hover . | . . . . Flight . | . . . . Fastest Speed 50 | 50 120 120 120 Average Speed 137 | 102 120 159 120 Slowest Speed 190 | 120 120 190 120 Overloaded Moves . | . . . . Propulsion Burnouts . | . . . . Robots Hopped . | . . . . Cave-ins Triggered . | . . . . Exploration Rate (%) 35 | 4 42 71 25 Regions Visited 3 Branch Regions 2 Pre-discovered Areas . | . . . . Known Exits Taken 1 | . 1 . . Unknown Exits Taken 2 | 1 . 1 . Scrap Searched . | . . . . Spaces Dug 4 | . 4 . . Terrain Destroyed 4 | . 4 . . Melee . | . . . . Projectile 4 | . 4 . . AOE . | . . . . Terrain Rammed . | . . . . Walls Destroyed . | . . . . Machines Disabled . | . . . . Actions | -11 -10 -10 -10 --------- Run | Yrd Mat Min Sub Total 1571 | 58 243 973 297 Wait 547 | 1 14 517 15 Move 888 | 39 167 407 275 Hop . | . . . . Pick Up 20 | 8 7 3 2 Fast Attach 18 | 6 3 8 1 Attach 1 | 1 . . . Detach . | . . . . Swap 15 | . 7 6 2 Drop 25 | . 11 12 2 Fire 57 | 3 34 20 . Melee . | . . . . Ram . | . . . . Kick . | . . . . Crush . | . . . . Escape Stasis . | . . . . Rewire . | . . . . Trap . | . . . . Miscellaneous . | . . . . Route ------- -11/Scrapyard -10/Materials -10/Mines (discovered 2 exits: [*Mat] / [*Sub]) -10/Subcaves (discovered 2 exits: [*Mat x2]) History --------- Turn | Location | Event 15 | -11/Scrapyard | Discovered new exit (range 15) 69 | -11/Scrapyard | Entered Materials 321 | -10/Materials | Build established: Mutant 324 | -10/Materials | Identified exit to Mines 398 | -10/Materials | Core integrity fell below 50% 432 | -10/Materials | Entered Mines 526 | -10/Mines | Core integrity fell below 20% 639 | -10/Mines | Assisted by bots powering up and referring to "LRC-V3" 754 | -10/Mines | Discovered new exit (range 10) 1143 | -10/Mines | Build established: Scavenger-Mutant 1212 | -10/Mines | Discovered new exit (range 14) 1683 | -10/Mines | Entered Subcaves 1683 | -10/Subcaves | Accompanied by 3 allies 1793 | -10/Subcaves | Discovered new exit (range 18) 2010 | -10/Subcaves | Discovered new exit (range 4) 2035 | -10/Subcaves | Destroyed by HU-87V(R) with Subdweller Machine Gun Last Messages --------------- 01728_ 72-DS1(R) destroyed. 01733_ Acquired 55 matter. 01735_ Acquired Sub. Optics. 01744_ Dropped Lgt. Ion Engine. 01745_ Acquired Scrap Shield Fragment. 01748_ Dropped Scrap Shield Fragment. 01752_ Acquired Sml. Laser. 01793_ EXIT=FOUND 01847_ Acquired 15 matter. 01860_ S-10 Pest destroyed. 01869_ Trooper 1b destroyed. 01879_ Lgt. Assault Rifle fries itself beyond repair. 01880_ Acquired 24 matter. 01881_ Acquired 9 matter. 01883_ Lgt. Ion Engine fries itself beyond repair. 01892_ Lgt. Assault Rifle fries itself beyond repair. 02010_ EXIT=FOUND Map ----- +----------------------------------------------------+ | ???????????????????# #??# % ## | | ???????????????????## ##??## ## % | | ????????????????????# ##????## ### # | | ????????????????????## % #??????######## ## | | ?????????????????????## #????????????# #### | | ??????????????????????### #??????????### #### | | ????????????????????????####??????????# #?# | | ??????????????????????????????????????# ##?# | | ?????????????????????????????##???????## #?## | | ????? ????????????????????## ????????## ### | | ???? ???????????????????# ##??###### | | ???? #??????????????????? #### ## # | | ??? ##?????#?##????????# ## | | ???# ????? #?####?## # # < | | ????# ???? ## ### # ### ## # | | ????? ????# " ## ## "## ## ### | | ??????? ???## """ " "# ##?? | | ????????# ??# " "" ##??? | | ?????????# ??? ### " #???? | | ??????????# ##????## # # # ##???? | | ???????????# #????# "#### ############????? | | ????????????# ##??# "### ##??????????????? | | ??????????????# #### ###" ##?????????????? | | ??????????##### ## """" "##????????????? | | ??????????# R <"""#????????????? | | ?????????# @ """"" "#???????????? | | ?????????# ### ### #"""""##???????????? | | ?????????# #??#######?####" "##????????????? | | ?????????## ####??????????????## ##?????????????? | | ??????????##?????????????????????##??????????????? | | ?????????????????????????????????????????????????? | | ?????????????????????????????????????????????????? | | ?????????????????????????????????????????????????? | | ?????????????????????????????????????????????????? | | ?????????????????????????????????????????????????? | | ?????????????????????????????????????????????????? | | ?????????????????????????????????????????????????? | | ?????????????????????????????????????????????????? | | ?????????????????????????????????????????????????? | | ?????????????????????????????????????????????????? | | ?????????????????????????????????????????????????? | | ?????????????????????????????????????????????????? | | ?????????????????????????????????????????????????? | | ?????????????????????????????????????????????????? | | ?????????????????????????????????????????????????? | | ?????????????????????????????????????????????????? | | ?????????????????????????????????????????????????? | | ?????????????????????????????????????????????????? | | ?????????????????????????????????????????????????? | | ?????????????????????????????????????????????????? | +----------------------------------------------------+ Best States ------------- Heat Dissipation 39 Energy Generation 10 Energy Capacity 250 Matter Stores 300 Matter Capacity 300 Sight Range 21 Terrain Scan Range 16 Terrain Scan Density 10 Evasion (%) 55 Item Schematics ----------------- None Robot Schematics ------------------ None Fabricated ------------ Nothing Alien Tech Used ----------------- None Achievements -------------- None Challenges ------------ None Game ------ Seed SubdwellerResetDoublenader Manual? 0 Play Time 00:19:11 Cumulative 76.1 hours Start 2024.03.03 @ 21:02:26 End 2024.03.03 @ 21:25:20 Sessions 1 Manual Loads 0 Difficulty Rogue Special Mode None Game No. 66 Rogue 66 Adventurer 0 Explorer 0 Win Type - Total 2 Types 2/0/0/0/0/0/0/0/0 Lore% 24 Gallery% 40 Achievement% 30 Wizard Run 0 Options --------- Layout 2 ASCII 0 Keyboard 0 Movement Numpad Keybinds 1 Fullscreen 2 Font 24/X11 Map View 50x44 Zoom Use 0% Tactical HUD 1 Map Filters NONE Filters BRIGHTNESS(115)|LOW_CONTRAST(0,16,30) Steam 1 RUN: a26789d8-1e7e-47a3-b2b5-45f99af3ba9e